Cogmind - Beta 15 @@@ ROGUE MODE // 2025.05.23 @ 20:45:11 Player: Polariusz Result: Destroyed by Y-54 Guardian with Flak Gun Performance ------------- Evolutions (3) 1500 Regions Visited (10) 2000 Robots Destroyed (98) 490 Value Destroyed (6328) 6328 Prototype IDs (5) 100 Alien Tech Used (0) 0 Bonus (4282) 4282 TOTAL SCORE: 14700 Bonus ------- High Alert Combat Kills 1837 Follower Combat Kills 245 Entered Garrisons 400 Used RIF Installer 1500 Aligned with FarCom 300 Cogmind --------- Core Integrity 0/700 Matter 176/300 Energy 123/160 System Corruption 6% Temperature Cool (71) Movement Treading (245) Ox1 Location -7/Storage Parts ------- > --- POWER (1) -------- Light Nuclear Core (fused) > --- PROPULSION (3) --- Light Treads Armored Treads > --- UTILITY (7) ------ Coolant Injector Large Storage Unit Visual Processing Unit Targeting Computer Layered Medium Armor Plating Hacking Suite System Shield > --- WEAPON (2) ------- Wave Gun Quantum Rifle > --- INVENTORY (15) --- Neutrino Core Carbon-fiber Leg High-capacity Matter Pod (200) Experimental Sensor Array Improved Melee Analysis Suite Improved Medium Armor Plating Improved Medium Armor Plating Layered Medium Armor Plating Plasma Rifle Plasma Rifle Plasma Rifle Precision Grenade Launcher Precision Grenade Launcher Longsword +1 Peak State ------------ > --- POWER ------------ Light Nuclear Core > --- PROPULSION ------- Aluminum Leg Aluminum Leg Carbon-fiber Leg > --- UTILITY ---------- Large Storage Unit Visual Processing Unit Targeting Computer Improved Particle Charger Layered Medium Armor Plating Hacking Suite System Shield > --- WEAPON ----------- Precision Grenade Launcher Longsword +1 > --- INVENTORY -------- Light Nuclear Core Neutrino Core Improved Heat Sink High-capacity Matter Pod Experimental Sensor Array Improved Melee Analysis Suite Improved Medium Armor Plating Improved Medium Armor Plating Layered Medium Armor Plating Plasma Rifle Plasma Rifle Plasma Rifle Wave Gun Quantum Rifle Precision Grenade Launcher [Rating: 48] Favorites ----------- Power Light Nuclear Core Engine Ion Engine Power Core Light Nuclear Core Propulsion Light Treads Treads Light Treads Leg Aluminum Leg Wheel Wheel Utility Targeting Computer Device Improved Heat Sink Storage Large Storage Unit Processor Targeting Computer Hackware Hacking Suite Protection Improved Light Armor Plating Weapon Longsword +1 Energy Gun Beam Rifle Ballistic Gun Heavy Assault Rifle Ballistic Cannon Flak Cannon Launcher Precision Grenade Launcher Slashing Weapon Longsword +1 Build | -11 -10 -10 -10 -9 -8 -8 -7 -7 -7 -7 ------- Run | Yrd Mat Min Exi Min Mat Gar Fac Gar Fac Sto Slots Evolved 6 | . . . . . 4 . 2 . . . Power . | . . . . . . . . . . . Propulsion 1 | . . . . . . . 1 . . . Utility 5 | . . . . . 4 . 1 . . . Weapon . | . . . . . . . . . . . Parts Attached 90 | 6 2 7 . 1 3 29 4 34 3 1 Power 12 | 1 . 2 . . . 3 . 6 . . Engine 5 | 1 . 2 . . . 2 . . . . Core 7 | . . . . . . 1 . 6 . . Reactor . | . . . . . . . . . . . Propulsion 24 | 2 . . . . . 10 . 11 1 . Treads 16 | . . . . . . 10 . 5 1 . Leg 6 | . . . . . . . . 6 . . Wheel 2 | 2 . . . . . . . . . . Hover . | . . . . . . . . . . . Flight . | . . . . . . . . . . . Utility 22 | 1 1 1 . . 3 5 2 8 . 1 Device 7 | . . . . . . 2 . 4 . 1 Storage 3 | 1 . 1 . . . 1 . . . . Processor 3 | . 1 . . . 2 . . . . . Hackware 4 | . . . . . 1 1 1 1 . . Protection 5 | . . . . . . 1 1 3 . . Artifact . | . . . . . . . . . . . Weapon 32 | 2 1 4 . 1 . 11 2 9 2 . Energy Gun 17 | 1 1 1 . . . 5 . 7 2 . Energy Cannon . | . . . . . . . . . . . Ballistic Gun 8 | 1 . 1 . . . 4 1 1 . . Ballistic Cannon 2 | . . 2 . . . . . . . . Launcher 4 | . . . . . . 2 1 1 . . Special Weapon . | . . . . . . . . . . . Impact Weapon . | . . . . . . . . . . . Slashing Weapon 1 | . . . . 1 . . . . . . Piercing Weapon . | . . . . . . . . . . . Special Melee Weapon . | . . . . . . . . . . . Unidentified Prototypes 3 | . . . . 1 . 1 1 . . . Parts Lost 45 | . . 3 . . . 16 . 25 . 1 Power 10 | . . 2 . . . 3 . 5 . . Propulsion 13 | . . . . . . 4 . 9 . . Utility 7 | . . . . . . 2 . 4 . 1 Weapon 15 | . . 1 . . . 7 . 7 . . Highest Loss Streak 9 | . . 2 . . . 9 . 8 . 1 To Critical Strikes . | . . . . . . . . . . . Average Backups 11 | 2 5 7 9 11 11 12 13 11 15 14 Power . | . 1 . . . . 1 1 . 1 1 Propulsion 1 | 1 2 2 2 2 3 2 2 . 1 1 Utility 4 | . 1 4 5 6 4 2 3 5 7 6 Weapon 4 | . . . 2 3 4 5 6 4 6 6 Tool/Special . | . . . . . . . . . . . Unused Backups 11 | . 1 . . . . 3 1 1 . 5 Power 1 | . . . . . . . . . . 1 Propulsion 1 | . . . . . . 1 . . . . Utility 6 | . . . . . . 2 . . . 4 Weapon 3 | . 1 . . . . . 1 1 . . Tool/Special . | . . . . . . . . . . . Average Slot Usage (%) 89 | . 91 91 100 100 84 85 81 89 97 88 Engine 2 | . 14 6 14 14 9 1 7 . . . Core 3 | . . . . . . 1 . 5 7 7 Treads 8 | . . . . . . 15 15 5 4 15 Leg 5 | . . . . . . . . 11 16 . Wheel 5 | . 28 28 28 28 18 2 . . . . Device 5 | . . . . . . 7 7 6 7 4 Storage 9 | . 14 14 14 14 9 11 7 6 7 7 Processor 20 | . 6 14 14 14 26 27 23 18 15 15 Hackware 6 | . . . . . 3 1 3 11 15 15 Protection 3 | . . . . . . . 1 5 7 7 Energy Gun 5 | . 27 6 . . . 3 . 5 15 14 Ballistic Gun 3 | . . 18 . . . 6 13 1 . . Ballistic Cannon 3 | . . 2 28 28 18 1 . . . . Launcher 1 | . . . . . . 1 . 1 . . Slashing Weapon 3 | . . . . . . 4 . 4 . . Peak Build Rating 48 | 6 8 16 15 19 20 33 26 48 48 48 Average Rating 27 | 4 6 10 14 15 18 20 22 35 45 44 On Entrance 19 | . 6 8 14 15 15 20 25 26 45 45 Naked Turns . | . . . . . . . . . . . Heaviest Build 47 | 11 12 37 37 37 37 40 37 46 47 46 Greatest Support 40 | 20 20 20 20 20 20 40 40 40 40 40 Greatest Overweight (x) 10 | . . 1 1 1 1 3 . 10 1 1 Average Overweight (x) . | . . . 1 1 1 . . . 1 1 Largest Inventory Capacity 15 | 8 8 15 15 15 15 15 15 15 15 15 Average Capacity 14 | 6 8 8 15 15 15 15 15 14 15 15 Most Carried 15 | 5 7 10 11 12 13 15 15 15 15 15 Average Carried 11 | 2 5 7 9 11 11 12 14 11 14 14 Final Capacity 15 | 8 8 15 15 15 15 15 15 15 15 15 Final Carried 15 | 3 7 9 11 12 12 14 14 15 15 14 Class Distribution -------------------- 75% | Scavenger-Mutant 24% | Mutant Dominant Class ---------------- Mutant | -10/Materials Mutant | -10/Mines Mutant | -10/Exiles Mutant | -9/Mines Mutant | -8/Materials Scavenger-Mutant | -8/Garrison Scavenger-Mutant | -7/Factory Scavenger-Mutant | -7/Garrison Scavenger-Mutant | -7/Factory Scavenger-Mutant | -7/Storage Resources | -11 -10 -10 -10 -9 -8 -8 -7 -7 -7 -7 ----------- Run | Yrd Mat Min Exi Min Mat Gar Fac Gar Fac Sto Matter Collected 3135 | 232 84 76 40 192 66 1104 25 1207 . 109 Remotely . | . . . . . . . . . . . Salvage Created 3432 | . 249 213 . 122 109 1225 25 1323 40 126 Parts 163 | . 4 15 . 10 7 56 6 50 3 12 Haulers Intercepted . | . . . . . . . . . . . Recyclers Shooed 3 | . 2 1 . . . . . . . . Parts Field Recycled . | . . . . . . . . . . . Retrieved Matter . | . . . . . . . . . . . Parts Self-Destructed . | . . . . . . . . . . . Prevented . | . . . . . . . . . . . Kills | -11 -10 -10 -10 -9 -8 -8 -7 -7 -7 -7 ------- Run | Yrd Mat Min Exi Min Mat Gar Fac Gar Fac Sto Combat Hostiles Destroyed 94 | . 5 9 . 7 3 31 . 32 1 6 Melee 2 | . . . . . . . . 2 . . Guns 60 | . 5 9 . . . 17 . 26 1 2 Cannons 20 | . . . . 7 3 10 . . . . AOE 11 | . . . . . . 4 . 3 . 4 Classes Destroyed 10 | . 4 . . . 1 2 1 2 . . Recycler 1 | . 1 . . . . . . . . . Operator 1 | . . . . . . . 1 . . . Watcher 2 | . 2 . . . . . . . . . Swarmer 25 | . 3 7 . 3 . . . 8 . 4 Grunt 36 | . 2 2 . 4 . 16 . 12 . . Brawler 1 | . . . . . . . . 1 . . Duelist 2 | . . . . . . . . 2 . . Sentry 21 | . . . . . 3 13 . 5 . . Hunter 3 | . . . . . . 1 . 1 1 . Programmer 6 | . . . . . . 1 . 3 . 2 Best Kill Streak 5 | . 3 3 . 3 1 5 1 4 1 4 Combat Bots Only 5 | . 3 3 . 3 1 5 . 4 1 4 Max Kills in Single Turn 2 | . 2 1 . 1 1 2 1 2 1 2 Gunslinging 1 | . 1 . . . . . . 1 . . Exploded 2 | . . . . . . 2 . 1 . 2 Melee 1 | . . . . . . . . 1 . . Uniques/NPCs Destroyed . | . . . . . . . . . . . Combat | -11 -10 -10 -10 -9 -8 -8 -7 -7 -7 -7 -------- Run | Yrd Mat Min Exi Min Mat Gar Fac Gar Fac Sto Hostile Shots Fired 743 | . 33 40 . 14 4 205 . 392 8 47 Missed 225 | . 10 15 . 2 3 57 . 114 2 22 Hits 518 | . 23 25 . 12 1 148 . 278 6 25 Melee 3 | . . . . . . . . 3 . . Projectile 515 | . 23 25 . 12 1 148 . 275 6 25 Critical Strikes 11 | . . 1 . . . 6 . 4 . . Damage Taken 6586 | . 233 220 . 112 15 2513 . 3040 88 365 Core 1414 | . 70 59 . 51 . 531 . 647 . 56 Absorbed by Shields 14 | . . . . . . 14 . . . . Core Remaining (%) 43 | 100 . . . 28 . 3 . . . . Volleys Fired 270 | 2 20 28 . 11 3 92 1 102 2 9 Largest 2 | 1 2 2 . 2 2 2 2 2 2 2 Hottest 175 | 50 100 100 . 74 74 130 46 150 169 175 Shots Fired 515 | 2 40 50 . 22 6 177 2 198 4 14 Gun 424 | 2 40 50 . . . 130 2 186 4 10 Cannon 62 | . . . . 22 6 34 . . . . Launcher 29 | . . . . . . 13 . 12 . 4 Special . | . . . . . . . . . . . Kinetic 264 | . . 40 . 22 6 107 2 87 . . Thermal 222 | 2 40 10 . . . 57 . 99 4 10 Explosive 29 | . . . . . . 13 . 12 . 4 Electromagnetic . | . . . . . . . . . . . Robot Hit Streak 28 | 2 8 7 . 6 11 27 7 28 1 6 Robot Miss Streak 10 | . 3 4 . 10 1 6 . 5 3 2 Penetration Max . | . . . . . . . . . . . Secondary Targets 7 | . 1 1 . . . . . 5 . . Max Gunslinging Chain 1 | . 1 1 . . . . . 1 . . Shots Hit Robots 388 | 2 24 30 . 16 6 141 2 156 1 10 Core Hits 277 | . 13 14 . 24 10 100 2 105 1 8 Critical Kills . | . . . . . . . . . . . Critical Parts Destroyed 1 | . . 1 . . . . . . . . Critical Strikes 14 | . 3 1 . . . 5 . 5 . . Burn 13 | . 3 . . . . 5 . 5 . . Destroy 1 | . . 1 . . . . . . . . Melee Attacks 122 | . . . . . . 49 . 71 . 2 Impact . | . . . . . . . . . . . Slashing 122 | . . . . . . 49 . 71 . 2 Piercing . | . . . . . . . . . . . Sneak Attacks . | . . . . . . . . . . . Combat Hostiles . | . . . . . . . . . . . Follow-up Attacks . | . . . . . . . . . . . Damage Inflicted 8104 | 24 314 292 . 384 155 3044 34 3140 33 684 Guns 5001 | 24 314 292 . . . 1509 34 2608 33 187 Cannons 1349 | . . . . 384 155 810 . . . . Explosions 1542 | . . . . . . 725 . 320 . 497 Melee 212 | . . . . . . . . 212 . . Ramming . | . . . . . . . . . . . Kinetic 3560 | . . 212 . 384 155 1636 34 1139 . . Thermal 2790 | 24 314 80 . . . 683 . 1469 33 187 Explosive 1542 | . . . . . . 725 . 320 . 497 Electromagnetic . | . . . . . . . . . . . Impact . | . . . . . . . . . . . Slashing 212 | . . . . . . . . 212 . . Piercing . | . . . . . . . . . . . Highest Corruption 6 | . . . . . . 2 . 3 3 6 Average Corruption 2 | . . . . . . 1 . 2 3 3 Corruption Purged . | . . . . . . . . . . . Corruption Blocked . | . . . . . . . . . . . Effects 92 | . . . . . . 46 . 22 8 16 Message Errors 30 | . . . . . . 15 . 10 . 5 Matter Fused 19 | . . . . . . 7 . 3 5 4 Heat Flow Errors 12 | . . . . . . 5 . 1 1 5 Energy Discharges 12 | . . . . . . 8 . 3 . 1 Parts Fused 2 | . . . . . . . . 2 . . Data Loss (minor) 8 | . . . . . . 6 . 1 . 1 Data Loss (major) 1 | . . . . . . . . . 1 . Misfires 3 | . . . . . . 3 . . . . Alerts 3 | . . . . . . . . 2 1 . Weapon Failures 2 | . . . . . . 2 . . . . Overload Shots . | . . . . . . . . . . . Overflow Damage 15 | . . . . . . 5 . . . 10 Projectiles . | . . . . . . . . . . . Explosions 15 | . . . . . . 5 . . . 10 Melee . | . . . . . . . . . . . Knockbacks 46 | . . . . 13 . 33 . . . . Impact . | . . . . . . . . . . . Kinetic 38 | . . . . 11 . 27 . . . . Secondary 8 | . . . . 2 . 6 . . . . Self-Inflicted Damage 187 | . . . . . . 103 . . . 84 Shots 8 | . . . . . . 5 . . . 3 Rammed . | . . . . . . . . . . . Targets Rammed . | . . . . . . . . . . . Kicked . | . . . . . . . . . . . Crushed . | . . . . . . . . . . . Highest Temperature 368 | 20 312 107 . 48 . 212 . 286 228 368 Average Temperature 70 | 12 125 49 . 22 . 34 . 69 116 99 Received Heat Transfer 2166 | . 57 60 . 33 9 972 . 1017 . 18 Effects 4 | . 3 . . . . . . 1 . . Energy Bleed 2 | . 2 . . . . . . . . . Interference 1 | . . . . . . . . 1 . . Matter Decay 1 | . 1 . . . . . . . . . Siege Activations . | . . . . . . . . . . . Martial Activations . | . . . . . . . . . . . Shielding Activations . | . . . . . . . . . . . Robots Disrupted . | . . . . . . . . . . . Combat Hostiles . | . . . . . . . . . . . Robots Corrupted . | . . . . . . . . . . . Combat Hostiles . | . . . . . . . . . . . Parts Fried . | . . . . . . . . . . . Impact Corruptions . | . . . . . . . . . . . Robots Melted 1 | . . . . . . . . 1 . . Combat Hostiles 1 | . . . . . . . . 1 . . Parts Melted 19 | . 3 . . . . 8 . 8 . . Heat Transferred 6838 | 74 1147 185 . . . 2072 . 3101 37 222 Parts Sabotaged 6 | . . . . . . . . 6 . . Parts Stolen . | . . . . . . . . . . . Parts Stripped . | . . . . . . . . . . . Power Chain Reactions . | . . . . . . . . . . . Alert | -11 -10 -10 -10 -9 -8 -8 -7 -7 -7 -7 ------- Run | Yrd Mat Min Exi Min Mat Gar Fac Gar Fac Sto Maximum Alert Level 5 | . . . . . . 5 5 5 5 4 Low Security (%) 16 | 100 100 100 . 100 100 7 . . . . Level 1 3 | . . . . . . 10 . . . . Level 2 2 | . . . . . . 7 . . . . Level 3 11 | . . . . . . 20 . 5 . 53 Level 4 16 | . . . . . . 11 39 22 . 46 Level 5 48 | . . . . . . 42 60 71 100 . High Security . | . . . . . . . . . . . Max Security . | . . . . . . . . . . . Peak Influence 5217 | . 80 128 . 93 53 3333 1749 5217 2744 1248 Initial 2738 | . . 18 . . 14 11 1749 1055 2738 1169 Average 1826 | . 18 63 . 17 16 1476 1626 2758 2668 1099 Influence Increases 9020 | . 191 240 . 205 136 3562 5 4452 46 183 Destroy 0b10 Robot/C 2020 | . 100 180 . 140 60 760 . 640 20 120 Destroy 0b10 Robot/NC 25 | . 15 . . . . 5 5 . . . Destroy Leader 224 | . 24 30 . 30 30 40 . 30 10 30 Allied During Kill 77 | . . . . 20 8 47 . 2 . . Trap Triggered on 0b10 10 | . . . . . . . . 10 . . Successful Hack 56 | . 7 . . . 8 23 . 18 . . Disable Machine 150 | . . . . . 15 45 . 60 15 15 Anti-Garrison Action 5800 | . . . . . . 2400 . 3400 . . Destroy Structure 448 | . . . . . . 167 . 262 1 18 Lose Combat Pursuer 210 | . 45 30 . 15 15 75 . 30 . . Influence Decreases 8040 | . 142 289 . 167 156 247 1830 743 2693 1773 Entered New Map 5979 | . . 31 . . 24 7 1584 453 2479 1401 Time Decay 1406 | . 77 228 . 167 112 . 246 . 214 362 Lost Part 450 | . . 30 . . . 160 . 250 . 10 Lost Ally 140 | . . . . . 20 80 . 40 . . Purge Threat 65 | . 65 . . . . . . . . . Squads Dispatched 11 | . 2 1 . . 1 . 1 . 2 4 Investigation 3 | . 1 1 . . . . . . . 1 Extermination 3 | . . . . . . . 1 . . 2 Reinforcement 3 | . 1 . . . 1 . . . . 1 Assault 2 | . . . . . . . . . 2 . Garrison . | . . . . . . . . . . . Intercept . | . . . . . . . . . . . Searches Triggered . | . . . . . . . . . . . Construction Impeded . | . . . . . . . . . . . Haulers Reinforced . | . . . . . . . . . . . Active Scanning Responses . | . . . . . . . . . . . Cargo Convoy Interrupts . | . . . . . . . . . . . Stealth | -11 -10 -10 -10 -9 -8 -8 -7 -7 -7 -7 --------- Run | Yrd Mat Min Exi Min Mat Gar Fac Gar Fac Sto Distress Signals 6 | . 2 . . . 3 . . . . 1 Communications Jammed . | . . . . . . . . . . . Distress Signals . | . . . . . . . . . . . Times Spotted 130 | . 15 10 . 8 6 42 1 35 3 10 Peak Tracking Total 6 | . 4 3 . 3 3 5 . 6 1 4 Tactical Retreats 12 | . 2 2 . 1 1 4 . 2 . . Traps | -11 -10 -10 -10 -9 -8 -8 -7 -7 -7 -7 ------- Run | Yrd Mat Min Exi Min Mat Gar Fac Gar Fac Sto Traps Triggered 17 | . 1 . . . . 6 . 9 . 1 Indirectly . | . . . . . . . . . . . Trap Hack Attempts . | . . . . . . . . . . . Triggered . | . . . . . . . . . . . Disarmed . | . . . . . . . . . . . Reprogrammed . | . . . . . . . . . . . Reused 1 | . . . . . . . . 1 . . Traps Extracted . | . . . . . . . . . . . Installed 1 | . . . . . . . . 1 . . Triggered 1 | . . . . . . . . 1 . . Most Traps Carried 1 | . . . . . . 1 1 1 . . Machines | -11 -10 -10 -10 -9 -8 -8 -7 -7 -7 -7 ---------- Run | Yrd Mat Min Exi Min Mat Gar Fac Gar Fac Sto Machines Disabled 23 | . . . . . 1 10 . 10 1 1 Max in Single Turn 1 | . . . . . . 1 . 1 1 1 Garrison Relay 12 | . . . . . . 7 . 5 . . Machines Repaired . | . . . . . . . . . . . Machines Dismantled . | . . . . . . . . . . . Machines Sabotaged . | . . . . . . . . . . . Overloaded Fab Kills . | . . . . . . . . . . . Hacking | -11 -10 -10 -10 -9 -8 -8 -7 -7 -7 -7 --------- Run | Yrd Mat Min Exi Min Mat Gar Fac Gar Fac Sto Machines Accessed 27 | . 4 1 4 . 4 3 4 4 3 . Terminals 18 | . 4 . . . 3 3 2 4 2 . Fabricators . | . . . . . . . . . . . Repair Stations . | . . . . . . . . . . . Recycling Units . | . . . . . . . . . . . Scanalyzers 2 | . . . . . . . 1 . 1 . Garrison Access 2 | . . . . . 1 . 1 . . . Total Hacks 92 | . 7 1 49 . 8 7 7 7 6 . Successful 69 | . 2 1 49 . 4 2 4 2 5 . Failed 23 | . 5 . . . 4 5 3 5 1 . Catastrophic 7 | . 2 . . . 2 1 1 1 . . Database Lockouts . | . . . . . . . . . . . Manual 16 | . 6 . 1 . 6 . 1 . 1 1 Terminals 33 | . 7 . . . 7 7 3 7 2 . Fabricators . | . . . . . . . . . . . Repair Stations . | . . . . . . . . . . . Recycling Units . | . . . . . . . . . . . Scanalyzers 6 | . . . . . . . 2 . 4 . Garrison Access 3 | . . . . . 1 . 2 . . . Terminal Hacks 62 | . 2 1 49 . 3 2 2 2 1 . Record 49 | . . . 49 . . . . . . . Prototype ID Bank 1 | . . . . . . . 1 . . . Open Door 3 | . . 1 . . . 1 . 1 . . Open DSF 1 | . . . . . . . . . 1 . Level Access Points 1 | . . . . . 1 . . . . . Emergency Access Points 1 | . . . . . 1 . . . . . Unreport Threat 1 | . 1 . . . . . . . . . Locate Traps 1 | . . . . . . . 1 . . . Dispatch Records 1 | . . . . . 1 . . . . . Recall Investigation 1 | . 1 . . . . . . . . . Garrison Registry 1 | . . . . . . . . 1 . . Security Stations 1 | . . . . . . 1 . . . . Fabricator Hacks . | . . . . . . . . . . . Repair Station Hacks . | . . . . . . . . . . . Recycling Unit Hacks . | . . . . . . . . . . . Scanalyzer 4 | . . . . . . . . . 4 . Insert Component 2 | . . . . . . . . . 2 . Analyze 2 | . . . . . . . . . 2 . Garrison Access Hacks 3 | . . . . . 1 . 2 . . . Unlock Access 2 | . . . . . 1 . 1 . . . Coupler Status 1 | . . . . . . . 1 . . . Unauthorized Hacks . | . . . . . . . . . . . Terminals . | . . . . . . . . . . . Fabricators . | . . . . . . . . . . . Repair Stations . | . . . . . . . . . . . Recycling Units . | . . . . . . . . . . . Scanalyzers . | . . . . . . . . . . . Garrison Access . | . . . . . . . . . . . Data Cores Recovered 1 | . . . . . . . 1 . . . Used 1 | . . . . . . . 1 . . . Hacking Detections 17 | . 4 . . . 3 3 4 2 1 . Full Trace Events 3 | . 1 . . . . 1 . 1 . . Feedback Events . | . . . . . . . . . . . Feedback Blocked . | . . . . . . . . . . . Robot Schematics Acquired . | . . . . . . . . . . . Robots Built . | . . . . . . . . . . . Authchips . | . . . . . . . . . . . Time . | . . . . . . . . . . . Total Robot Build Rating . | . . . . . . . . . . . Part Schematics Acquired 2 | . . . . . . . . . 2 . Parts Built . | . . . . . . . . . . . Authchips . | . . . . . . . . . . . Time . | . . . . . . . . . . . Total Part Build Rating . | . . . . . . . . . . . Parts Repaired . | . . . . . . . . . . . Time . | . . . . . . . . . . . Parts Recycled . | . . . . . . . . . . . Recycled Matter . | . . . . . . . . . . . Retrieved Matter . | . . . . . . . . . . . Retrieved Components . | . . . . . . . . . . . Parts Scanalyzed 2 | . . . . . . . . . 2 . Part Schematics Acquired 2 | . . . . . . . . . 2 . Parts Damaged . | . . . . . . . . . . . Bothacking | -11 -10 -10 -10 -9 -8 -8 -7 -7 -7 -7 ------------ Run | Yrd Mat Min Exi Min Mat Gar Fac Gar Fac Sto Used RIF Installer 3 | . . . . . . 2 . 1 . . Hotswap 1 | . . . . . . . . 1 . . Command Fork 1 | . . . . . . 1 . . . . Robots Hacked . | . . . . . . . . . . . Non-combat . | . . . . . . . . . . . Combat . | . . . . . . . . . . . Robot Hacks Applied . | . . . . . . . . . . . Relay Couplers Released 51 | . . . . . . 32 . 19 . . Machine Destruction 48 | . . . . . . 29 . 19 . . Programmers 3 | . . . . . . 3 . . . . Attached 1 | . . . . . . 1 . . . . Fabnet Peak Effective % . | . . . . . . . . . . . Robots Rewired 6 | . . . . . . 6 . . . . Allies Hacked . | . . . . . . . . . . . Hacks Repelled . | . . . . . . . . . . . Allies | -11 -10 -10 -10 -9 -8 -8 -7 -7 -7 -7 -------- Run | Yrd Mat Min Exi Min Mat Gar Fac Gar Fac Sto Total Allies 10 | . . . . 2 . 6 . 2 . . Largest Group 4 | . . . . 2 2 4 . 2 . . Highest-Rated Group 75 | . . . . 41 41 75 . 51 . . Highest-Rated Ally 31 | . . . . 31 31 31 . 31 . . Total Orders 4 | . . . . . . 4 . . . . FOLLOW 2 | . . . . . . 2 . . . . AID 2 | . . . . . . 2 . . . . Ally Attacks 51 | . . . . 1 9 38 . 3 . . Total Damage 994 | . . . . 22 84 888 . . . . Kills 7 | . . . . . . 7 . . . . Allies Corrupted . | . . . . . . . . . . . Allies Melted . | . . . . . . . . . . . Intel | -11 -10 -10 -10 -9 -8 -8 -7 -7 -7 -7 ------- Run | Yrd Mat Min Exi Min Mat Gar Fac Gar Fac Sto Active Infowar (turns) 15373 | . 196 513 619 865 326 4730 526 6335 443 820 Optics 15373 | . 196 513 619 865 326 4730 526 6335 443 820 Sensors 10 | . . . . . . 10 . . . . Robot Analysis Total . | . . . . . . . . . . . Derelict Logs Recovered 4 | . . 1 . 3 . . . . . . Drone Launches . | . . . . . . . . . . . Drone Recoveries . | . . . . . . . . . . . Exploration | -11 -10 -10 -10 -9 -8 -8 -7 -7 -7 -7 ------------- Run | Yrd Mat Min Exi Min Mat Gar Fac Gar Fac Sto Turns Passed 15652 | 63 412 513 619 865 326 4730 526 6335 443 820 Spaces Moved 8477 | 55 397 471 597 723 292 2486 304 2763 201 188 Core 28 | 17 . . . . . . . 11 . . Treads 3746 | . . . . . . 2098 304 1111 45 188 Legs 1797 | . . . . . . . . 1641 156 . Wheels 2906 | 38 397 471 597 723 292 388 . . . . Hover . | . . . . . . . . . . . Flight . | . . . . . . . . . . . Fastest Speed 50 | 50 80 80 95 95 95 95 160 120 190 245 Average Speed 146 | 70 80 82 95 95 95 149 160 184 202 245 Slowest Speed 550 | 80 80 95 95 95 95 160 160 550 245 245 Overloaded Moves . | . . . . . . . . . . . Propulsion Burnouts . | . . . . . . . . . . . Robots Hopped 1 | . . . . . . . . 1 . . Potential Cave-ins . | . . . . . . . . . . . Cave-ins Triggered . | . . . . . . . . . . . Exploration Rate (%) 53 | 3 75 76 93 90 22 85 8 96 7 38 Regions Visited 10 Branch Regions 4 Pre-discovered Areas 3 | . . . 1 2 . . . . . . Known Exits Taken 3 | . . . 1 . 1 . 1 . . . Unknown Exits Taken 5 | 1 1 1 . 1 . . . . 1 . Scrap Searched 3 | . . 1 . 2 . . . . . . Spaces Dug 26 | . . . . . . 14 . 11 . 1 Terrain Destroyed 153 | . . . . . . 80 . 57 1 15 Melee 26 | . . . . . . 14 . 11 . 1 Projectile 4 | . . . . . . . . . 1 3 AOE 123 | . . . . . . 66 . 46 . 11 Terrain Rammed . | . . . . . . . . . . . Walls Destroyed . | . . . . . . . . . . . Machines Disabled . | . . . . . . . . . . . Actions | -11 -10 -10 -10 -9 -8 -8 -7 -7 -7 -7 --------- Run | Yrd Mat Min Exi Min Mat Gar Fac Gar Fac Sto Total 11021 | 76 451 555 648 878 334 3260 343 3710 234 532 Wait 1693 | 5 26 35 50 142 33 417 25 609 23 328 Move 8464 | 54 396 470 596 722 292 2484 303 2759 200 188 Hop 1 | . . . . . . . . 1 . . Pick Up 123 | 9 6 9 2 1 3 32 6 53 2 . Fast Attach 2 | . . 1 . . . 1 . . . . Attach 78 | 6 1 4 . . 3 21 3 38 1 1 Detach 6 | . . . . . . 4 . 2 . . Swap 82 | . 1 3 . 2 . 34 1 34 3 4 Drop 40 | . 1 5 . . . 15 4 12 3 . Fire 270 | 2 20 28 . 11 3 92 1 102 2 9 Melee 122 | . . . . . . 49 . 71 . 2 Ram . | . . . . . . . . . . . Kick . | . . . . . . . . . . . Crush . | . . . . . . . . . . . Escape Stasis 43 | . . . . . . 15 . 28 . . Rewire 96 | . . . . . . 96 . . . . Trap 1 | . . . . . . . . 1 . . Miscellaneous . | . . . . . . . . . . . Route ------- -11/Scrapyard -10/Materials (discovered 2 exits: [*Mat] / *Min) -10/Mines (discovered 2 exits: [*Mat] / *Exi) -10/Exiles (discovered 2 exits: *Min x2) -9/Mines -8/Materials (discovered 4 exits: Fac x3 / Gar) -8/Garrison (discovered 4 exits: *Fac x3 / [*Mat]) -7/Factory (discovered 2 exits: *Sto / Gar) -7/Garrison (discovered 3 exits: *Fac x3) -7/Factory -7/Storage History --------- Turn | Location | Event 6 | -11/Scrapyard | Discovered new exit (range 14) 64 | -11/Scrapyard | Entered Materials 199 | -10/Materials | Discovered new exit (range 16) 301 | -10/Materials | Build established: Mutant 431 | -10/Materials | Discovered new exit (range 7) 476 | -10/Materials | Entered Mines 516 | -10/Mines | Met a Derelict bent on vengeance 555 | -10/Mines | Discovered new exit (range 7) 644 | -10/Mines | Core integrity fell below 50% 665 | -10/Mines | Assembled infested the area 665 | -10/Mines | Found a damaged Exp. Sensor Array with a note attached 667 | -10/Mines | Found Prototype Device 914 | -10/Mines | Met a Derelict shopkeep closing up shop 984 | -10/Mines | Deemed a non-threat by the Exiles lab entrance 985 | -10/Mines | Discovered new exit (range 5) 989 | -10/Mines | Entered Exiles 990 | -10/Exiles | Identified exit to Mines 1013 | -10/Exiles | Met 8R-AWN 1028 | -10/Exiles | Met EX-HEX 1058 | -10/Exiles | Met EX-BIN 1070 | -10/Exiles | Aligned with FarCom system 1071 | -10/Exiles | Given EX-Vault access code 1093 | -10/Exiles | Opened EX-Vault 1097 | -10/Exiles | Found Prototype Slashing Weapon 1140 | -10/Exiles | Warned to stay clear of 0b10 Research branches 1168 | -10/Exiles | Met EX-DEC 1178 | -10/Exiles | Learned location of Zion (-6) 1227 | -10/Exiles | Visited The Gauntlet 1608 | -10/Exiles | Left Exiles lab with Longsword +1 1608 | -10/Exiles | Entered Mines 1643 | -9/Mines | Identified Longsword +1 1669 | -9/Mines | Discovered new exit (range 6) 1904 | -9/Mines | A weapon hastily lodged in a ceiling crevice suddenly fell to the ground 1927 | -9/Mines | Received a Rocket Launcher from a helpful Derelict 2269 | -9/Mines | Learned Materials terminal intel 2473 | -9/Mines | Entered Materials 2473 | -8/Materials | Accompanied by 2 allies 2473 | -8/Materials | Evolved 4 slots: Utility x4 2474 | -8/Materials | Loaded intel: 12 terminal locations 2478 | -8/Materials | Led the pair of lost Derelicts to an unsafe place 2784 | -8/Materials | Identified exit to Factory 2799 | -8/Materials | Identified exit to Garrison 2799 | -8/Materials | Entered Garrison 2985 | -8/Garrison | Triggered checkpoint 2994 | -8/Garrison | Garrison Relay disabled 3081 | -8/Garrison | Installed Relay Interface Framework 3143 | -8/Garrison | Triggered checkpoint 3245 | -8/Garrison | Triggered checkpoint 3335 | -8/Garrison | Triggered checkpoint 3384 | -8/Garrison | Identified Exp. Sensor Array 3428 | -8/Garrison | Core integrity fell below 50% 3456 | -8/Garrison | Lost 9 parts (2p2n2u3w) 3515 | -8/Garrison | Discovered exit to Factory (range 17) 3547 | -8/Garrison | Expanded RIF knowledge: Command Fork 3635 | -8/Garrison | Triggered checkpoint 3796 | -8/Garrison | Garrison Relay disabled 4003 | -8/Garrison | Garrison Relay disabled 4034 | -8/Garrison | Discovered exit to Factory (range 8) 4065 | -8/Garrison | Build established: Scavenger-Mutant 4357 | -8/Garrison | Triggered checkpoint 4410 | -8/Garrison | Garrison Relay disabled 4565 | -8/Garrison | Triggered checkpoint 4641 | -8/Garrison | Discovered new exit (range 5) 4807 | -8/Garrison | Core integrity fell below 20% 4999 | -8/Garrison | Discovered exit to Factory (range 11) 5117 | -8/Garrison | Triggered checkpoint 5383 | -8/Garrison | Triggered checkpoint 5485 | -8/Garrison | Triggered checkpoint 5701 | -8/Garrison | Garrison Relay disabled 5828 | -8/Garrison | Garrison Relay disabled 7069 | -8/Garrison | Garrison Relay disabled 7163 | -8/Garrison | Learned Factory security intel 7529 | -8/Garrison | Entered Factory 7529 | -7/Factory | Evolved 2 slots: Propulsion x1, Utility x1 7714 | -7/Factory | Discovered new exit (range 16) 8048 | -7/Factory | Identified exit to Garrison 8055 | -7/Factory | Entered Garrison 8415 | -7/Garrison | Triggered checkpoint 8573 | -7/Garrison | Lost 3 parts (1p2w) 8658 | -7/Garrison | Discovered new exit (range 17) 8753 | -7/Garrison | Triggered checkpoint 8836 | -7/Garrison | Expanded RIF knowledge: Hotswap 9011 | -7/Garrison | Triggered checkpoint 9070 | -7/Garrison | Garrison Relay disabled 9783 | -7/Garrison | Discovered new exit (range 9) 9849 | -7/Garrison | Lost 4 parts (1p2n1w) 10062 | -7/Garrison | Rescued a captive Derelict 10064 | -7/Garrison | Rescued a captive Derelict 10257 | -7/Garrison | Triggered checkpoint 10504 | -7/Garrison | Core integrity fell below 50% 10532 | -7/Garrison | Lost 5 parts (1p3n1w) 10571 | -7/Garrison | Garrison Relay disabled 10729 | -7/Garrison | Triggered checkpoint 10817 | -7/Garrison | Discovered new exit (range 8) 10865 | -7/Garrison | Garrison Relay disabled 11019 | -7/Garrison | Core integrity fell below 20% 11046 | -7/Garrison | Lost 8 parts (1p2n2u3w) 11795 | -7/Garrison | Triggered checkpoint 11986 | -7/Garrison | Garrison Relay disabled 13094 | -7/Garrison | Discovered new exit (range 67) 13094 | -7/Garrison | Discovered new exit (range 77) 13094 | -7/Garrison | Discovered new exit (range 61) 13485 | -7/Garrison | Garrison Relay disabled 14390 | -7/Garrison | Entered Factory 14402 | -7/Factory | Identified exit to DSF 14733 | -7/Factory | Discovered new exit (range 4) 14790 | -7/Factory | First assault squad dispatched 14833 | -7/Factory | Entered Storage 15653 | -7/Storage | Destroyed by Y-54 Guardian with Flak Gun Last Messages --------------- 15491_ System corrupted: Matter fused (-7). 15500_ K-01 Serf cleans the Terminal. 15515_ System corrupted: Heat flow error (+108). 15537_ ALERT: Potential suspicious activity detected, Programmers report to Storage Zone 2G. 15541_ System corrupted: Matter fused (-8). 15553_ O-24 Administrator: "IFF HANDSHAKE FAILED. SECURING TERMINAL." 15558_ O-24 Administrator uses terminal to summon reinforcements. 15558_ ALERT: Hostiles spotted, dispatching reinforcements to Terminal S002. 15558_ O-24 Administrator locks terminal. 15574_ P-60 Hacker destroyed. 15580_ Acquired 49 matter. 15583_ U-05 Engineer builds a Door. 15607_ W-25 Informer sends out distress signal. 15609_ K-01 Serf cleans the Terminal. 15635_ System corrupted: Heat flow error (+256). Map ----- +----------------------------------------------------+ | ??????????????# #???????????????????????? | | ??????????????# #???????????????????????? | | ?????????###### #???????????????????????? | | ?????????# ^ ^ #????"??????????????????? | | ?????????# #??? ???????????????????? | | ?????????# """^ #?? ???????????????????? | | ?????????+ """ "" "" #?? ???????????????????? | | ?????????# """ ""T"" #? ????????????????????? | | ?????????# """ ##+###??????????????????? | | ?????????+ #??#???????????????? | | ?????????# #? ???????????????? | | ?????????## ######## # ""???????????????? | | ??????#####+######### # ""???????????????? | | ??????# # """ / "????????????????? | | ??????# + """ #??????????????????? | | ??????# """ """ """ #^ """ ##?????????????????? | | ??????# """ """ """ # #?????????????????? | | ??????# """ """ """ + #?????????????????? | | ??????# # ! #?????????????????? | | ??????############### #?????????????????? | | ????????????????????# ########?????????????????? | | ???????????????"##### #############????????????? | | ???????????????" +??????###???? | | ???????????????" h ##### ########### ???? | | ???????????????"#T####/##Y##### # # "???? | | ????????????????###= @ # # # "???? | | ??????????????????# # # # ""??? | | ??????????????????#! % # #!! # """" | | ??????????????????# ! # #! " " # "!! | | ??????????????????# u ! # # "Y" | | ???????########???# # #] """ # | | ???????# ##??# wu ! # # [ | | ???????# "##########/##### ######+###### # | | ???????# + | | ???????# # | | ???????# + | | ???????# #"################################# | | ???????##########???????????????????????????????? | | ????????????????????????????????????????????????? | | ????????????????????????????????????????????????? | | | | | | | | | | | | | | | | | | | | | +----------------------------------------------------+ Best States ------------- Heat Dissipation 48 Coolant Potential 65 Energy Generation 14 Energy Capacity 265 Matter Stores 500 Matter Capacity 500 Sight Range 18 Robot Scan Range 20 Terrain Scan Density 10 Armor Coverage 225 Evasion (%) 55 Targeting Accuracy 10 Recoil Reduction 2 Particle Charging 20 Offensive Hacking 10 Defensive Hacking 10 Relay Coupler Types 1 Relay Coupler Value 29 Item Schematics ----------------- Wave Gun | -7/Factory | Scanalyzed Quantum Rifle | -7/Factory | Scanalyzed Robot Schematics ------------------ None Fabricated ------------ Nothing Repaired ---------- Nothing Alien Tech Used ----------------- None Achievements -------------- A New Friend Challenges ------------ None Game ------ Seed InterceptGuidanceCycler Manual? 0 Play Time 01:42:20 Cumulative 43.5 hours Start 2025.05.23 @ 18:56:54 End 2025.05.23 @ 20:45:11 Sessions 1 Manual Loads 0 Difficulty Rogue Special Mode None Game No. 46 Rogue 46 Adventurer 0 Explorer 0 Win Type - Total 1 Types 1/0/0/0/0/0/0/0/0/0 Lore% 22 Gallery% 29 Achievement% 27 Wizard Run 0 Options --------- Layout 1 ASCII 0 Keyboard 0 Movement Mouse Keybinds 0 Fullscreen 1 Font 24/Smallcaps Map View 50x35 Zoom Use 0% Tactical HUD 1 Map Filters NONE Filters NONE Steam 1 RUN: 52b4f602-5a88-41fb-9e61-f001612aa7ce